[Event "*** SCC Grand Prix: Titled Tuesday Blitz"]
[Site "Chess.com"]
[Date "2020.06.23"]
[Round "7"]
[White "Squirlolz"]
[Black "KaterynaLagno"]
[Result "0-1"]
[WhiteElo "2511"]
[BlackElo "2674"]
[TimeControl "180+1"]
[EndTime "11:17:31 PDT"]
[Termination "KaterynaLagno won on time"]

1. b3 {[%clk 0:02:59.3]} 1... Nf6 {[%clk 0:02:57.7]} 2. Bb2 {[%clk 0:03:00.2]}
2... g6 {[%clk 0:02:58.1]} 3. Nf3 {[%clk 0:02:57.1]} 3... Bg7 {[%clk 0:02:57]}
4. e3 {[%clk 0:02:57.8]} 4... O-O {[%clk 0:02:55.7]} 5. Be2 {[%clk 0:02:57.3]}
5... c5 {[%clk 0:02:54.5]} 6. d4 {[%clk 0:02:54.6]} 6... cxd4 {[%clk 0:02:51.4]}
7. exd4 {[%clk 0:02:54.5]} 7... d5 {[%clk 0:02:52]} 8. O-O {[%clk 0:02:54.6]}
8... Ne4 {[%clk 0:02:47.9]} 9. Nbd2 {[%clk 0:02:54.8]} 9... Nc6 {[%clk
0:02:45.7]} 10. Re1 {[%clk 0:02:55]} 10... Bg4 {[%clk 0:02:32.9]} 11. h3 {[%clk
0:02:47.9]} 11... Nxd2 {[%clk 0:02:31.6]} 12. hxg4 {[%clk 0:02:31.2]} 12...
Nxf3+ {[%clk 0:02:29.6]} 13. Bxf3 {[%clk 0:02:32.1]} 13... e6 {[%clk 0:02:30.3]}
14. Qd2 {[%clk 0:02:28.4]} 14... h6 {[%clk 0:02:23.4]} 15. Rad1 {[%clk
0:02:25.6]} 15... Qc7 {[%clk 0:02:11.8]} 16. g3 {[%clk 0:02:25.4]} 16... b5
{[%clk 0:02:06]} 17. g5 {[%clk 0:02:23.6]} 17... h5 {[%clk 0:02:02.5]} 18. Kg2
{[%clk 0:02:21.4]} 18... Ne7 {[%clk 0:01:56.6]} 19. g4 {[%clk 0:01:57]} 19...
Rac8 {[%clk 0:01:50.2]} 20. Re2 {[%clk 0:01:31.6]} 20... hxg4 {[%clk 0:01:43.5]}
21. Bxg4 {[%clk 0:01:32.5]} 21... Nf5 {[%clk 0:01:43.9]} 22. Rh1 {[%clk
0:01:21.3]} 22... Rfe8 {[%clk 0:01:28.4]} 23. Qd3 {[%clk 0:01:17]} 23... Qf4
{[%clk 0:01:27.3]} 24. Qh3 {[%clk 0:01:07.9]} 24... b4 {[%clk 0:01:23]} 25. Bxf5
{[%clk 0:00:50.2]} 25... exf5 {[%clk 0:00:51.6]} 26. Bc1 {[%clk 0:00:30.7]}
26... Qxd4 {[%clk 0:00:48.7]} 27. Qh7+ {[%clk 0:00:17.2]} 27... Kf8 {[%clk
0:00:48.4]} 28. Rhe1 {[%clk 0:00:18.1]} 28... Qg4+ {[%clk 0:00:43.9]} 29. Kf1
{[%clk 0:00:17.9]} 29... Re4 {[%clk 0:00:32.4]} 30. Bd2 {[%clk 0:00:10]} 30...
a5 {[%clk 0:00:28]} 31. Be3 {[%clk 0:00:05.5]} 31... d4 {[%clk 0:00:26.3]} 32.
Bc1 {[%clk 0:00:03.7]} 32... Rce8 {[%clk 0:00:26]} 33. Rxe4 {[%clk 0:00:03.7]}
33... Rxe4 {[%clk 0:00:25.6]} 34. Rxe4 {[%clk 0:00:04]} 34... fxe4 {[%clk
0:00:25.2]} 35. Bd2 {[%clk 0:00:02.5]} 35... Qd1+ {[%clk 0:00:24.5]} 36. Be1
{[%clk 0:00:03]} 36... d3 {[%clk 0:00:25]} 37. Qh2 {[%clk 0:00:03.1]} 37... Bc3
{[%clk 0:00:21.5]} 38. Qb8+ {[%clk 0:00:03.1]} 38... Kg7 {[%clk 0:00:21.8]} 39.
Kg2 {[%clk 0:00:01.2]} 39... Qxe1 {[%clk 0:00:22]} 0-1

[Event "*** SCC Grand Prix: Titled Tuesday Blitz"]
[Site "Chess.com"]
[Date "2020.06.23"]
[Round "7"]
[White "Chessdreamer2020"]
[Black "DenisQ"]
[Result "0-1"]
[WhiteElo "2479"]
[BlackElo "2641"]
[TimeControl "180+1"]
[EndTime "11:17:31 PDT"]
[Termination "DenisQ won by resignation"]

1. e4 {[%clk 0:02:58.3]} 1... c6 {[%clk 0:02:59.4]} 2. Nc3 {[%clk 0:02:55.5]}
2... d5 {[%clk 0:03:00.3]} 3. Nf3 {[%clk 0:02:54.3]} 3... Bg4 {[%clk 0:02:59.5]}
4. h3 {[%clk 0:02:53.4]} 4... Bh5 {[%clk 0:02:59.7]} 5. exd5 {[%clk 0:02:51.3]}
5... cxd5 {[%clk 0:02:59]} 6. g4 {[%clk 0:02:51.5]} 6... Bg6 {[%clk 0:02:56.5]}
7. Bb5+ {[%clk 0:02:50.4]} 7... Nc6 {[%clk 0:02:55.7]} 8. Ne5 {[%clk 0:02:37.9]}
8... Rc8 {[%clk 0:02:54.6]} 9. h4 {[%clk 0:02:35.4]} 9... f6 {[%clk 0:02:50.9]}
10. Nxg6 {[%clk 0:02:34.3]} 10... hxg6 {[%clk 0:02:51.3]} 11. d4 {[%clk
0:02:32.5]} 11... e6 {[%clk 0:02:50]} 12. Qd3 {[%clk 0:02:31]} 12... Kf7 {[%clk
0:02:47.9]} 13. Bxc6 {[%clk 0:02:30.9]} 13... Rxc6 {[%clk 0:02:47.3]} 14. Bd2
{[%clk 0:02:29.3]} 14... Bb4 {[%clk 0:02:45.9]} 15. O-O-O {[%clk 0:02:27]} 15...
Ne7 {[%clk 0:02:45.2]} 16. h5 {[%clk 0:02:24.6]} 16... gxh5 {[%clk 0:02:43.5]}
17. Rxh5 {[%clk 0:02:14.3]} 17... Rxh5 {[%clk 0:02:42.6]} 18. gxh5 {[%clk
0:02:14.3]} 18... Bxc3 {[%clk 0:02:42.2]} 19. Bxc3 {[%clk 0:02:12]} 19... Qh8
{[%clk 0:02:21.1]} 20. Rh1 {[%clk 0:02:07.1]} 20... Nf5 {[%clk 0:02:12.9]} 21.
Kb1 {[%clk 0:02:01.2]} 21... Rc4 {[%clk 0:02:03.5]} 22. b3 {[%clk 0:01:54.6]}
22... Rc7 {[%clk 0:02:01.4]} 23. Bd2 {[%clk 0:01:53.9]} 23... a6 {[%clk
0:01:55]} 24. c3 {[%clk 0:01:46.9]} 24... b5 {[%clk 0:01:51.8]} 25. Qe2 {[%clk
0:01:31.1]} 25... Qh7 {[%clk 0:01:43.3]} 26. Kb2 {[%clk 0:01:29.8]} 26... Nd6
{[%clk 0:01:36.9]} 27. Rh3 {[%clk 0:01:20.7]} 27... Ne4 {[%clk 0:01:27.7]} 28.
Be1 {[%clk 0:01:18.9]} 28... Qf5 {[%clk 0:01:26.4]} 29. Rf3 {[%clk 0:01:00]}
29... Qxh5 {[%clk 0:01:25.2]} 30. Qe3 {[%clk 0:00:52.2]} 30... Qg5 {[%clk
0:01:21.1]} 31. Qd3 {[%clk 0:00:36.6]} 31... Qg4 {[%clk 0:01:07.7]} 32. Re3
{[%clk 0:00:33.5]} 32... Qf5 {[%clk 0:01:01.7]} 33. Rf3 {[%clk 0:00:32.4]} 33...
Qg5 {[%clk 0:01:01.7]} 34. Re3 {[%clk 0:00:32.1]} 34... Qf5 {[%clk 0:01:00.8]}
35. Rf3 {[%clk 0:00:32.3]} 35... Qg6 {[%clk 0:01:00.9]} 36. Re3 {[%clk
0:00:30.7]} 36... Qg2 {[%clk 0:00:45.3]} 37. Re2 {[%clk 0:00:30.7]} 37... Nd6
{[%clk 0:00:38.1]} 38. Qe3 {[%clk 0:00:21.4]} 38... Re7 {[%clk 0:00:34.6]} 39.
f3 {[%clk 0:00:19.3]} 39... Qf1 {[%clk 0:00:33.1]} 40. Rf2 {[%clk 0:00:16.2]}
40... Nf5 {[%clk 0:00:32]} 41. Qd2 {[%clk 0:00:10.9]} 41... Qg1 {[%clk
0:00:31.5]} 42. Rg2 {[%clk 0:00:10.3]} 42... Qe3 {[%clk 0:00:31.2]} 43. Qc2
{[%clk 0:00:07.5]} 43... Qxe1 {[%clk 0:00:29.6]} 0-1

[Event "*** SCC Grand Prix: Titled Tuesday Blitz"]
[Site "Chess.com"]
[Date "2020.06.23"]
[Round "7"]
[White "Alindsay211"]
[Black "2007checkmate"]
[Result "1-0"]
[WhiteElo "2317"]
[BlackElo "2436"]
[TimeControl "180+1"]
[EndTime "11:17:32 PDT"]
[Termination "Alindsay211 won on time"]

1. e4 {[%clk 0:03:00.9]} 1... e5 {[%clk 0:02:58.1]} 2. Nf3 {[%clk 0:03:00.8]}
2... Nc6 {[%clk 0:02:58]} 3. Bc4 {[%clk 0:02:56.2]} 3... Bc5 {[%clk 0:02:56.7]}
4. d4 {[%clk 0:02:54.3]} 4... Bxd4 {[%clk 0:02:51.5]} 5. c3 {[%clk 0:02:46.1]}
5... Bb6 {[%clk 0:02:50.5]} 6. b4 {[%clk 0:02:36.9]} 6... Nf6 {[%clk 0:02:47.8]}
7. a4 {[%clk 0:02:28.3]} 7... a6 {[%clk 0:02:46.9]} 8. O-O {[%clk 0:02:24.1]}
8... d6 {[%clk 0:02:42.9]} 9. Bg5 {[%clk 0:02:23.7]} 9... h6 {[%clk 0:02:42.4]}
10. Bxf6 {[%clk 0:02:21.5]} 10... Qxf6 {[%clk 0:02:43.3]} 11. h3 {[%clk
0:02:20.8]} 11... O-O {[%clk 0:02:41.4]} 12. Nbd2 {[%clk 0:02:20.7]} 12... Be6
{[%clk 0:02:40.7]} 13. Qb3 {[%clk 0:02:15.5]} 13... Ne7 {[%clk 0:02:37.7]} 14.
a5 {[%clk 0:02:12.1]} 14... Ba7 {[%clk 0:02:37.4]} 15. b5 {[%clk 0:02:12.1]}
15... axb5 {[%clk 0:02:28.6]} 16. Qxb5 {[%clk 0:02:13]} 16... Rab8 {[%clk
0:02:13.9]} 17. Bxe6 {[%clk 0:01:58.7]} 17... fxe6 {[%clk 0:02:07.6]} 18. Qd7
{[%clk 0:01:57.9]} 18... Rbc8 {[%clk 0:01:52.6]} 19. Rfb1 {[%clk 0:01:50.1]}
19... Rfd8 {[%clk 0:01:17.9]} 20. Qa4 {[%clk 0:01:46.3]} 20... Rb8 {[%clk
0:01:16.4]} 21. a6 {[%clk 0:01:36.4]} 21... bxa6 {[%clk 0:01:15.4]} 22. Qxa6
{[%clk 0:01:36.9]} 22... Bb6 {[%clk 0:01:14.8]} 23. Nc4 {[%clk 0:01:36.8]} 23...
Bc5 {[%clk 0:01:11.8]} 24. Qa5 {[%clk 0:01:24.3]} 24... c6 {[%clk 0:00:48.6]}
25. Ncxe5 {[%clk 0:01:08.2]} 25... Bxf2+ {[%clk 0:00:36.2]} 26. Kxf2 {[%clk
0:01:07.1]} 26... dxe5 {[%clk 0:00:37.1]} 27. Qxe5 {[%clk 0:01:06]} 27... Rd2+
{[%clk 0:00:32.4]} 28. Kg1 {[%clk 0:01:05]} 28... Qxe5 {[%clk 0:00:26.8]} 29.
Nxe5 {[%clk 0:01:05.9]} 29... Rf8 {[%clk 0:00:25.5]} 30. Rf1 {[%clk 0:00:49.8]}
30... Rb8 {[%clk 0:00:22.8]} 31. Rfd1 {[%clk 0:00:41.3]} 31... Re2 {[%clk
0:00:18.8]} 32. Re1 {[%clk 0:00:40.8]} 32... Rbb2 {[%clk 0:00:17.7]} 33. Rxe2
{[%clk 0:00:39.8]} 33... Rxe2 {[%clk 0:00:18.6]} 34. Ra4 {[%clk 0:00:39.6]}
34... Re3 {[%clk 0:00:15.1]} 35. Rc4 {[%clk 0:00:39.5]} 35... g5 {[%clk
0:00:13.7]} 36. Kf2 {[%clk 0:00:39.7]} 36... Ng6 {[%clk 0:00:08]} 37. Nxg6
{[%clk 0:00:36.9]} 37... Rd3 {[%clk 0:00:08.4]} 38. Ne5 {[%clk 0:00:36.6]} 38...
Rd2+ {[%clk 0:00:08.8]} 39. Kf1 {[%clk 0:00:36.1]} 39... Kg7 {[%clk 0:00:08.8]}
40. Rxc6 {[%clk 0:00:35.2]} 40... Kf6 {[%clk 0:00:07.9]} 41. Nf3 {[%clk
0:00:35.4]} 41... Rd1+ {[%clk 0:00:07.4]} 42. Kf2 {[%clk 0:00:35.9]} 42... Ra1
{[%clk 0:00:08.3]} 43. Kg3 {[%clk 0:00:33.2]} 43... h5 {[%clk 0:00:07.5]} 44.
Rc5 {[%clk 0:00:30.2]} 44... h4+ {[%clk 0:00:03.5]} 45. Kh2 {[%clk 0:00:30.1]}
45... g4 {[%clk 0:00:01.3]} 46. hxg4 {[%clk 0:00:31]} 1-0

[Event "*** SCC Grand Prix: Titled Tuesday Blitz"]
[Site "Chess.com"]
[Date "2020.06.23"]
[Round "7"]
[White "gmcorrales"]
[Black "Reader777"]
[Result "1-0"]
[WhiteElo "2820"]
[BlackElo "2693"]
[TimeControl "180+1"]
[EndTime "11:17:36 PDT"]
[Termination "gmcorrales won by resignation"]

1. e4 {[%clk 0:02:50.5]} 1... c5 {[%clk 0:02:59.9]} 2. Nf3 {[%clk 0:02:50.4]}
2... d6 {[%clk 0:02:59.8]} 3. d4 {[%clk 0:02:51]} 3... cxd4 {[%clk 0:03:00.5]}
4. Nxd4 {[%clk 0:02:51.9]} 4... e6 {[%clk 0:03:01]} 5. Nc3 {[%clk 0:02:52.1]}
5... Nc6 {[%clk 0:03:00.7]} 6. Be3 {[%clk 0:02:52.4]} 6... Nf6 {[%clk
0:03:00.2]} 7. f3 {[%clk 0:02:52.4]} 7... Be7 {[%clk 0:02:58]} 8. Qd2 {[%clk
0:02:52.3]} 8... a6 {[%clk 0:02:56]} 9. O-O-O {[%clk 0:02:52.2]} 9... Qc7 {[%clk
0:02:52.3]} 10. g4 {[%clk 0:02:52.1]} 10... Nd7 {[%clk 0:02:42.6]} 11. h4 {[%clk
0:02:49.3]} 11... b5 {[%clk 0:02:38.4]} 12. Nxc6 {[%clk 0:02:49.6]} 12... Qxc6
{[%clk 0:02:38.1]} 13. Ne2 {[%clk 0:02:50.2]} 13... Bb7 {[%clk 0:02:37.4]} 14.
Nd4 {[%clk 0:02:50.7]} 14... Qc7 {[%clk 0:02:37.1]} 15. g5 {[%clk 0:02:48.3]}
15... Ne5 {[%clk 0:02:36.4]} 16. h5 {[%clk 0:02:41.7]} 16... Nc4 {[%clk
0:02:33.7]} 17. Bxc4 {[%clk 0:02:41.2]} 17... Qxc4 {[%clk 0:02:33.8]} 18. b3
{[%clk 0:02:40.1]} 18... Qc7 {[%clk 0:02:32]} 19. g6 {[%clk 0:02:39.8]} 19...
Bf6 {[%clk 0:02:19.8]} 20. Bg5 {[%clk 0:02:36.3]} 20... Be5 {[%clk 0:01:49.6]}
21. Bf4 {[%clk 0:02:07.5]} 21... Bxd4 {[%clk 0:01:31.9]} 22. Qxd4 {[%clk
0:02:06.9]} 22... e5 {[%clk 0:01:32.5]} 23. gxf7+ {[%clk 0:01:57.4]} 23... Kf8
{[%clk 0:01:31]} 24. Qxd6+ {[%clk 0:01:48.8]} 24... Qxd6 {[%clk 0:01:30.5]} 25.
Rxd6 {[%clk 0:01:49.7]} 25... exf4 {[%clk 0:01:31.1]} 26. Rhd1 {[%clk
0:01:44.3]} 26... Rb8 {[%clk 0:00:55.2]} 27. Rd7 {[%clk 0:00:54.8]} 27... Bc6
{[%clk 0:00:50.6]} 28. Rc7 {[%clk 0:00:54.6]} 28... Ba8 {[%clk 0:00:40.3]} 29.
Rd6 {[%clk 0:00:52.3]} 29... g5 {[%clk 0:00:27.4]} 30. h6 {[%clk 0:00:48.8]}
30... g4 {[%clk 0:00:25.3]} 31. fxg4 {[%clk 0:00:29.8]} 31... Bxe4 {[%clk
0:00:24.6]} 32. Rxa6 {[%clk 0:00:25.2]} 32... Bg6 {[%clk 0:00:21]} 33. Rf6
{[%clk 0:00:24.9]} 33... Rd8 {[%clk 0:00:15.4]} 34. Rxf4 {[%clk 0:00:23.7]}
34... Ra8 {[%clk 0:00:12.3]} 35. Kb2 {[%clk 0:00:23.7]} 35... Rd8 {[%clk
0:00:11.8]} 36. g5 {[%clk 0:00:23.1]} 36... Rb8 {[%clk 0:00:09.5]} 37. Rf6
{[%clk 0:00:23]} 37... Rd8 {[%clk 0:00:09.1]} 38. Rb6 {[%clk 0:00:23]} 38... Be4
{[%clk 0:00:04.1]} 39. Rxb5 {[%clk 0:00:20.5]} 39... Bd5 {[%clk 0:00:04.4]} 40.
Rxd5 {[%clk 0:00:18.9]} 40... Rxd5 {[%clk 0:00:04.7]} 41. Rc8+ {[%clk
0:00:19.3]} 41... Kxf7 {[%clk 0:00:05.6]} 42. Rxh8 {[%clk 0:00:20.1]} 42... Rxg5
{[%clk 0:00:06.2]} 43. Rxh7+ {[%clk 0:00:20.3]} 1-0

[Event "*** SCC Grand Prix: Titled Tuesday Blitz"]
[Site "Chess.com"]
[Date "2020.06.23"]
[Round "7"]
[White "novendrapriasmoro"]
[Black "RaunakSadhwani2005"]
[Result "0-1"]
[WhiteElo "2611"]
[BlackElo "2880"]
[TimeControl "180+1"]
[EndTime "11:17:37 PDT"]
[Termination "RaunakSadhwani2005 won on time"]

1. e4 {[%clk 0:03:00.9]} 1... c6 {[%clk 0:03:00.1]} 2. d4 {[%clk 0:03:01]} 2...
d5 {[%clk 0:03:01]} 3. Nd2 {[%clk 0:03:00.7]} 3... g6 {[%clk 0:02:59.9]} 4. Ngf3
{[%clk 0:03:00.3]} 4... Bg7 {[%clk 0:02:59.2]} 5. h3 {[%clk 0:02:59.2]} 5...
dxe4 {[%clk 0:02:59.1]} 6. Nxe4 {[%clk 0:02:59.3]} 6... Nf6 {[%clk 0:03:00]} 7.
Nxf6+ {[%clk 0:02:58.4]} 7... exf6 {[%clk 0:03:00.9]} 8. Bd3 {[%clk 0:02:57.6]}
8... O-O {[%clk 0:02:59.1]} 9. O-O {[%clk 0:02:57.7]} 9... Na6 {[%clk
0:02:55.2]} 10. c3 {[%clk 0:02:57.8]} 10... Nc7 {[%clk 0:02:55.4]} 11. Bd2
{[%clk 0:02:56.7]} 11... Be6 {[%clk 0:02:55.8]} 12. Qc2 {[%clk 0:02:51.6]} 12...
Qd7 {[%clk 0:02:55.5]} 13. Rfe1 {[%clk 0:02:50.7]} 13... Rfe8 {[%clk 0:02:55.3]}
14. Rad1 {[%clk 0:02:48.2]} 14... a5 {[%clk 0:02:50.7]} 15. c4 {[%clk
0:02:43.9]} 15... a4 {[%clk 0:02:49.3]} 16. Bc3 {[%clk 0:02:41.5]} 16... Bxh3
{[%clk 0:02:42.8]} 17. gxh3 {[%clk 0:02:35.6]} 17... Qxh3 {[%clk 0:02:43.7]} 18.
Nh2 {[%clk 0:02:35.3]} 18... Ne6 {[%clk 0:02:41.1]} 19. Bf1 {[%clk 0:02:32.4]}
19... Qh5 {[%clk 0:02:38.2]} 20. Qe2 {[%clk 0:02:28.1]} 20... Qg5+ {[%clk
0:02:21.6]} 21. Qg4 {[%clk 0:02:27.2]} 21... a3 {[%clk 0:02:19.1]} 22. b3 {[%clk
0:02:22.3]} 22... h5 {[%clk 0:02:17.8]} 23. Qxg5 {[%clk 0:02:21.9]} 23... fxg5
{[%clk 0:02:18.7]} 24. Ba1 {[%clk 0:02:12.2]} 24... g4 {[%clk 0:02:16.2]} 25. d5
{[%clk 0:02:05.9]} 25... Nf4 {[%clk 0:02:08.8]} 26. Bxg7 {[%clk 0:02:02.7]}
26... Kxg7 {[%clk 0:02:09.7]} 27. Rxe8 {[%clk 0:01:54.7]} 27... Rxe8 {[%clk
0:02:09.1]} 28. d6 {[%clk 0:01:54.6]} 28... c5 {[%clk 0:02:08.1]} 29. Bg2 {[%clk
0:01:41.2]} 29... b6 {[%clk 0:02:06]} 30. Nf1 {[%clk 0:01:20.5]} 30... Ne2+
{[%clk 0:01:59.8]} 31. Kh2 {[%clk 0:01:18.2]} 31... Nd4 {[%clk 0:02:00.7]} 32.
Nd2 {[%clk 0:00:58.1]} 32... Rd8 {[%clk 0:01:57]} 33. Nb1 {[%clk 0:00:55.4]}
33... Rxd6 {[%clk 0:01:55.5]} 34. Nxa3 {[%clk 0:00:55.3]} 34... Re6 {[%clk
0:01:52.2]} 35. Bf1 {[%clk 0:00:39.9]} 35... f5 {[%clk 0:01:50.3]} 36. Nb5
{[%clk 0:00:36]} 36... Nf3+ {[%clk 0:01:50.4]} 37. Kh1 {[%clk 0:00:34.2]} 37...
h4 {[%clk 0:01:50.8]} 38. Nc3 {[%clk 0:00:28.3]} 38... h3 {[%clk 0:01:50.3]} 39.
Nd5 {[%clk 0:00:25.2]} 39... g5 {[%clk 0:01:42.3]} 40. Ne3 {[%clk 0:00:24.2]}
40... Nd4 {[%clk 0:01:42]} 41. Bd3 {[%clk 0:00:20]} 41... Kf6 {[%clk 0:01:41.3]}
42. Re1 {[%clk 0:00:18.9]} 42... Kf7 {[%clk 0:01:32.9]} 43. Rd1 {[%clk
0:00:18.3]} 43... Re5 {[%clk 0:01:32.6]} 44. Rb1 {[%clk 0:00:16.6]} 44... Kg7
{[%clk 0:01:30]} 45. b4 {[%clk 0:00:13.6]} 45... Kh6 {[%clk 0:01:20.9]} 46. bxc5
{[%clk 0:00:13.6]} 46... bxc5 {[%clk 0:01:21.2]} 47. Rb6+ {[%clk 0:00:13.5]}
47... Kh5 {[%clk 0:01:20.6]} 48. a4 {[%clk 0:00:12.2]} 48... g3 {[%clk
0:01:02.3]} 49. Kg1 {[%clk 0:00:06.7]} 49... Rxe3 {[%clk 0:00:51.8]} 50. fxe3
{[%clk 0:00:03.3]} 50... Nf3+ {[%clk 0:00:52.3]} 0-1

[Event "*** SCC Grand Prix: Titled Tuesday Blitz"]
[Site "Chess.com"]
[Date "2020.06.23"]
[Round "7"]
[White "Ze-Pequeno"]
[Black "ErikRonka"]
[Result "1-0"]
[WhiteElo "2182"]
[BlackElo "2368"]
[TimeControl "180+1"]
[EndTime "11:17:37 PDT"]
[Termination "Ze-Pequeno won by resignation"]

1. e4 {[%clk 0:03:00.9]} 1... c5 {[%clk 0:02:57.9]} 2. Nf3 {[%clk 0:03:00.6]}
2... e6 {[%clk 0:02:57.3]} 3. d4 {[%clk 0:03:00.4]} 3... cxd4 {[%clk 0:02:57.1]}
4. Nxd4 {[%clk 0:03:01.3]} 4... d6 {[%clk 0:02:50.5]} 5. c4 {[%clk 0:02:53]}
5... Nf6 {[%clk 0:02:47.4]} 6. Nc3 {[%clk 0:02:52.7]} 6... Be7 {[%clk
0:02:47.3]} 7. Be2 {[%clk 0:02:52.5]} 7... O-O {[%clk 0:02:46.9]} 8. O-O {[%clk
0:02:52.3]} 8... Nbd7 {[%clk 0:02:47.2]} 9. Be3 {[%clk 0:02:51.9]} 9... a6
{[%clk 0:02:47.4]} 10. f3 {[%clk 0:02:51.8]} 10... b6 {[%clk 0:02:47.2]} 11. Qd2
{[%clk 0:02:51.6]} 11... Qc7 {[%clk 0:02:47.6]} 12. Rfc1 {[%clk 0:02:50.6]}
12... Bb7 {[%clk 0:02:47.9]} 13. a4 {[%clk 0:02:45.6]} 13... Ne5 {[%clk
0:02:40]} 14. b3 {[%clk 0:02:36.6]} 14... Rac8 {[%clk 0:02:35.1]} 15. Bf1 {[%clk
0:02:33.7]} 15... Rfd8 {[%clk 0:02:32.8]} 16. Qf2 {[%clk 0:02:32.4]} 16... h5
{[%clk 0:01:54.4]} 17. Kh1 {[%clk 0:02:23.5]} 17... h4 {[%clk 0:01:51.7]} 18.
Rab1 {[%clk 0:02:22]} 18... Nh5 {[%clk 0:01:03.3]} 19. Kg1 {[%clk 0:02:18.9]}
19... Rd7 {[%clk 0:00:47.5]} 20. Be2 {[%clk 0:02:11.4]} 20... Ng6 {[%clk
0:00:45.3]} 21. Nc2 {[%clk 0:01:44.9]} 21... Bd8 {[%clk 0:00:43.9]} 22. f4
{[%clk 0:01:40.9]} 22... Nf6 {[%clk 0:00:43.2]} 23. Bf3 {[%clk 0:01:35.6]} 23...
Bc6 {[%clk 0:00:31.2]} 24. Nd4 {[%clk 0:01:26.2]} 24... Ba8 {[%clk 0:00:30.5]}
25. f5 {[%clk 0:01:22.1]} 25... exf5 {[%clk 0:00:28.3]} 26. Nxf5 {[%clk
0:01:21.6]} 26... Ne5 {[%clk 0:00:27.7]} 27. Nd5 {[%clk 0:01:16.2]} 27... Bxd5
{[%clk 0:00:26.6]} 28. exd5 {[%clk 0:01:07.5]} 28... g6 {[%clk 0:00:19.3]} 29.
Nd4 {[%clk 0:01:02.1]} 29... Nfg4 {[%clk 0:00:17.8]} 30. Bxg4 {[%clk 0:00:57.3]}
30... Nxg4 {[%clk 0:00:18.7]} 31. Qf3 {[%clk 0:00:56.1]} 31... Nxe3 {[%clk
0:00:16.6]} 32. Qxe3 {[%clk 0:00:56.6]} 32... Bf6 {[%clk 0:00:17.3]} 33. Rf1
{[%clk 0:00:50.8]} 33... Re7 {[%clk 0:00:13.4]} 34. Qf4 {[%clk 0:00:47.7]} 34...
Be5 {[%clk 0:00:13.4]} 35. Qxh4 {[%clk 0:00:46.3]} 35... Qc5 {[%clk 0:00:12.3]}
36. Qxe7 {[%clk 0:00:45.2]} 36... Qxd4+ {[%clk 0:00:12.4]} 37. Kh1 {[%clk
0:00:45]} 37... Rf8 {[%clk 0:00:12.3]} 38. Rf3 {[%clk 0:00:33.1]} 38... Qe4
{[%clk 0:00:10.6]} 39. Rbf1 {[%clk 0:00:31.7]} 39... Qg4 {[%clk 0:00:09.8]} 40.
Rxf7 {[%clk 0:00:27]} 40... Rc8 {[%clk 0:00:07.8]} 41. Rf8+ {[%clk 0:00:24.8]}
1-0

[Event "*** SCC Grand Prix: Titled Tuesday Blitz"]
[Site "Chess.com"]
[Date "2020.06.23"]
[Round "7"]
[White "cholzan"]
[Black "Konavets"]
[Result "0-1"]
[WhiteElo "2372"]
[BlackElo "2994"]
[TimeControl "180+1"]
[EndTime "11:17:38 PDT"]
[Termination "Konavets won by resignation"]

1. d4 {[%clk 0:03:00.9]} 1... Nf6 {[%clk 0:02:58.9]} 2. c4 {[%clk 0:03:00.4]}
2... g6 {[%clk 0:02:58.7]} 3. Nc3 {[%clk 0:02:58.7]} 3... Bg7 {[%clk 0:02:59.5]}
4. e4 {[%clk 0:02:57.7]} 4... d6 {[%clk 0:03:00.4]} 5. Nf3 {[%clk 0:02:56.7]}
5... O-O {[%clk 0:03:01.1]} 6. Be2 {[%clk 0:02:56.9]} 6... Nc6 {[%clk
0:03:00.5]} 7. O-O {[%clk 0:02:56.6]} 7... e5 {[%clk 0:03:00.8]} 8. d5 {[%clk
0:02:56.6]} 8... Ne7 {[%clk 0:03:01.2]} 9. b4 {[%clk 0:02:56.8]} 9... Nd7 {[%clk
0:03:01.2]} 10. Ba3 {[%clk 0:02:50.6]} 10... a5 {[%clk 0:03:00.3]} 11. bxa5
{[%clk 0:02:49.2]} 11... h6 {[%clk 0:02:59.7]} 12. Bb4 {[%clk 0:02:40.2]} 12...
f5 {[%clk 0:02:59.6]} 13. Nd2 {[%clk 0:02:28.1]} 13... h5 {[%clk 0:02:50.1]} 14.
a4 {[%clk 0:02:17]} 14... f4 {[%clk 0:02:38.1]} 15. Nb3 {[%clk 0:02:13.2]} 15...
Nb8 {[%clk 0:01:42.2]} 16. c5 {[%clk 0:02:08.3]} 16... Na6 {[%clk 0:01:41.9]}
17. Ba3 {[%clk 0:02:05]} 17... Rf6 {[%clk 0:01:38.9]} 18. Nb5 {[%clk 0:01:57.9]}
18... Bh6 {[%clk 0:01:12.2]} 19. Bf3 {[%clk 0:01:46.3]} 19... h4 {[%clk
0:00:30]} 20. h3 {[%clk 0:01:33.9]} 20... g5 {[%clk 0:00:26.5]} 21. Rc1 {[%clk
0:01:31.5]} 21... Bf8 {[%clk 0:00:26.5]} 22. Nxc7 {[%clk 0:01:18]} 22... Nxc7
{[%clk 0:00:24.4]} 23. cxd6 {[%clk 0:01:17.6]} 23... Rxd6 {[%clk 0:00:25.3]} 24.
Bxd6 {[%clk 0:01:11.4]} 24... Qxd6 {[%clk 0:00:26.2]} 25. Bg4 {[%clk 0:01:09.3]}
25... Bxg4 {[%clk 0:00:17.1]} 26. Qxg4 {[%clk 0:01:10.2]} 26... Bh6 {[%clk
0:00:17.3]} 27. Qh5 {[%clk 0:01:05.9]} 27... Kg7 {[%clk 0:00:16.5]} 28. Rc3
{[%clk 0:00:53.4]} 28... Ne8 {[%clk 0:00:15.8]} 29. Rfc1 {[%clk 0:00:51.4]}
29... Nf6 {[%clk 0:00:14.3]} 30. Qf3 {[%clk 0:00:50.8]} 30... Rd8 {[%clk
0:00:13.1]} 31. Nc5 {[%clk 0:00:48.9]} 31... Kg6 {[%clk 0:00:12.5]} 32. Ne6
{[%clk 0:00:48.4]} 32... Ra8 {[%clk 0:00:11.2]} 33. g3 {[%clk 0:00:38.8]} 33...
hxg3 {[%clk 0:00:10.7]} 34. fxg3 {[%clk 0:00:38.3]} 34... Rxa5 {[%clk
0:00:10.9]} 35. gxf4 {[%clk 0:00:38]} 35... exf4 {[%clk 0:00:11.8]} 36. h4
{[%clk 0:00:31.8]} 36... g4 {[%clk 0:00:11.8]} 37. Qd3 {[%clk 0:00:25.8]} 37...
Qe5 {[%clk 0:00:12]} 38. Rc7 {[%clk 0:00:21.6]} 38... f3 {[%clk 0:00:12.2]} 39.
Kf2 {[%clk 0:00:17.6]} 39... Qh2+ {[%clk 0:00:12.1]} 40. Ke1 {[%clk 0:00:15.4]}
40... Qg1+ {[%clk 0:00:12.4]} 0-1